fUST/lending_fUST_20240921
["ID","MTS","AMOUNT","RATE_DAILY","PERIOD"]
[338696167,1726882248385,-649.28286,0.0001454,2]
[338696168,1726882248394,-500.0,0.0001454,2]
[338696169,1726882248403,-151.292781,0.0001454,2]
[338696170,1726882248412,-500.0,0.0001454,2]
[338696171,1726882248421,-500.0,0.0001454,2]
[338696172,1726882248430,-151.292781,0.0001454,2]
[338696173,1726882248440,-151.0,0.0001454,2]
[338696174,1726882248449,-286.342554,0.0001454,2]
[338696175,1726882248458,-500.0,0.0001454,2]
[338696176,1726882248467,-500.0,0.0001454,2]
[338696177,1726882248478,-500.0,0.0001454,2]
[338696178,1726882248490,-500.0,0.0001454,2]
[338696179,1726882248499,-500.0,0.0001454,2]
[338696180,1726882248509,-500.0,0.0001454,2]
[338696181,1726882248518,-500.0,0.0001454,2]
[338696182,1726882248528,-151.0,0.0001454,2]
[338696183,1726882248537,-500.0,0.0001454,2]
[338696184,1726882248547,-239.886031,0.0001454,2]
[338696185,1726882248556,-500.0,0.0001454,2]
[338696186,1726882248566,-239.886031,0.0001454,2]
[338696187,1726882248575,-500.0,0.0001454,2]
[338696188,1726882248584,-500.0,0.0001454,2]
[338696189,1726882248593,-151.0,0.0001454,2]
[338696190,1726882248603,-500.0,0.0001454,2]
[338696191,1726882248612,-500.0,0.0001454,2]
[338696192,1726882248623,-500.0,0.0001454,2]
[338696193,1726882248634,-500.0,0.0001454,2]
[338696194,1726882248644,-500.0,0.0001454,2]
[338696195,1726882248654,-500.0,0.0001454,2]
[338696196,1726882248664,-500.0,0.0001454,2]
[338696197,1726882248674,-151.0,0.0001454,2]
[338696198,1726882248684,-151.0,0.0001454,2]
[338696199,1726882248693,-500.0,0.0001454,2]
[338696200,1726882248703,-535.73,0.0001454,2]
[338696201,1726882248712,-500.0,0.0001454,2]
[338696202,1726882248721,-500.0,0.0001454,2]
[338696203,1726882248730,-1020.53,0.0001454,2]
[338696204,1726882248743,-500.0,0.0001454,2]
[338696205,1726882248753,-500.0,0.0001454,2]
[338696206,1726882248762,-500.0,0.0001454,2]
[338696207,1726882248771,-500.0,0.0001454,2]
[338696208,1726882248780,-523.6,0.0001454,2]
[338696209,1726882248790,-500.0,0.0001454,2]
[338696210,1726882248799,-500.0,0.0001454,2]
[338696211,1726882248808,-500.0,0.0001454,2]
[338696212,1726882248818,-500.0,0.0001454,2]
[338696213,1726882248828,-500.0,0.0001454,2]
[338696214,1726882248838,-500.0,0.0001454,2]
[338696215,1726882248847,-186.49213446,0.0001454,2]
[338696216,1726882248856,-500.0,0.0001454,2]
[338696217,1726882248865,-500.0,0.0001454,2]
[338696218,1726882248875,-500.0,0.0001454,2]
[338696219,1726882248888,-500.0,0.0001454,2]
[338696220,1726882248898,-500.0,0.0001454,2]
[338696221,1726882248907,-500.0,0.0001454,2]
[338696222,1726882248918,-221.34104605,0.0001454,2]
[338696223,1726882248927,-500.0,0.0001454,2]
[338696224,1726882248938,-500.0,0.0001454,2]
[338696225,1726882248948,-500.0,0.0001454,2]
[338696226,1726882248958,-500.0,0.0001454,2]
[338696227,1726882248967,-500.0,0.0001454,2]
[338696228,1726882248976,-262.58572452,0.0001454,2]
[338696229,1726882248986,-500.0,0.0001454,2]
[338696230,1726882248995,-500.0,0.0001454,2]
[338696231,1726882249004,-500.0,0.0001454,2]
[338696232,1726882249014,-500.0,0.0001454,2]
[338696233,1726882249023,-508.14112441,0.0001454,2]
[338696234,1726882249033,-500.0,0.0001454,2]
[338696235,1726882249043,-631.49,0.0001454,2]
[338696236,1726882249052,-690.32,0.0001454,2]
[338696237,1726882249061,-151.0,0.00014551,2]
[338696238,1726882249070,-151.0,0.00014551,2]
[338696239,1726882249079,-151.0,0.00014551,2]
[338696240,1726882249088,-158.05926,0.00014551,2]
[338696241,1726882249097,-151.0,0.00014551,2]
[338696242,1726882249107,-594.512729,0.00014551,2]
[338696243,1726882249116,-151.0,0.00014551,2]
[338696244,1726882249125,-151.0,0.00014551,2]
[338696245,1726882249134,-500.0,0.00014551,2]
[338696246,1726882249144,-223.35697,0.00014551,2]
[338696247,1726882249153,-500.0,0.00014551,2]
[338696248,1726882249162,-500.0,0.00014551,2]
[338696249,1726882249171,-500.0,0.00014551,2]
[338696250,1726882249181,-559.76,0.00014551,2]
[338696251,1726882249190,-500.0,0.00014551,2]
[338696252,1726882249199,-500.0,0.00014551,2]
[338696253,1726882249209,-500.0,0.00014551,2]
[338696254,1726882249218,-500.0,0.00014551,2]
[338696255,1726882249228,-500.0,0.00014551,2]
[338696256,1726882249238,-500.0,0.00014551,2]
[338696257,1726882249247,-500.0,0.00014551,2]
[338696258,1726882249257,-500.0,0.00014551,2]
[338696259,1726882249266,-500.0,0.00014551,2]
[338696260,1726882249276,-500.0,0.00014551,2]
[338696261,1726882249286,-500.0,0.00014551,2]
[338696262,1726882249295,-500.0,0.00014551,2]
[338696263,1726882249304,-500.0,0.00014551,2]
[338696264,1726882249314,-583.95,0.00014551,2]
[338696265,1726882249323,-400.0,0.00014551,2]
[338696266,1726882249333,-500.0,0.00014551,2]
[338696267,1726882249342,-500.0,0.00014551,2]
[338696268,1726882249351,-500.0,0.00014551,2]
[338696269,1726882249360,-500.0,0.00014551,2]
[338696270,1726882249369,-500.0,0.00014551,2]
[338696271,1726882249378,-500.0,0.00014551,2]
[338696272,1726882249388,-500.0,0.00014551,2]
[338696273,1726882249398,-500.0,0.00014551,2]
[338696274,1726882249407,-500.0,0.00014551,2]
[338696275,1726882249417,-500.0,0.00014551,2]
[338696276,1726882249427,-500.0,0.00014551,2]
[338696277,1726882249437,-500.0,0.00014551,2]
[338696278,1726882249586,-280.79,0.00014551,2]
[338696279,1726882249597,-500.0,0.00014551,2]
[338696280,1726882249606,-500.0,0.00014551,2]
[338696281,1726882249617,-500.0,0.00014551,2]
[338696282,1726882249627,-500.0,0.00014551,2]
[338696283,1726882249637,-500.0,0.00014551,2]
[338696284,1726882249647,-500.0,0.00014551,2]
[338696285,1726882249657,-500.0,0.00014551,2]
[338696286,1726882249666,-500.0,0.00014551,2]
[338696287,1726882249675,-500.0,0.00014551,2]
[338696288,1726882249684,-500.0,0.00014551,2]
[338696289,1726882249693,-500.0,0.00014551,2]
[338696290,1726882249705,-349.008388,0.00014551,2]
[338696291,1726882249716,-349.008388,0.00014551,2]
[338696292,1726882249725,-424.71,0.00014551,2]
[338696293,1726882249737,-855.27,0.00014551,2]
[338696294,1726882249749,-500.0,0.00014551,2]
[338696295,1726882249760,-500.0,0.00014551,2]
[338696296,1726882249769,-500.0,0.00014551,2]
[338696297,1726882249778,-500.0,0.00014551,2]
[338696298,1726882249788,-500.0,0.00014551,2]
[338696299,1726882249797,-500.0,0.00014551,2]
[338696300,1726882249806,-319.771918,0.00014551,2]
[338696301,1726882249815,-500.0,0.00014551,2]
[338696302,1726882249825,-319.771918,0.00014551,2]
[338696303,1726882249834,-200.0,0.00014551,2]
[338696304,1726882249843,-500.0,0.00014551,2]
[338696305,1726882249853,-503.14,0.00014551,2]
[338696306,1726882249862,-151.0,0.00014551,2]
[338696307,1726882249871,-208.675393,0.00014551,2]
[338696308,1726882249885,-208.675393,0.00014551,2]
[338696309,1726882249894,-151.0,0.00014556,2]
[338696310,1726882249903,-12136.1090097,0.00014556,2]
[338696311,1726882249913,-619.45,0.00014557,2]
[338696312,1726882249922,-619.45,0.00014557,2]
[338696313,1726882249932,-619.45,0.00014557,2]
[338696314,1726882249941,-619.45,0.00014557,2]
[338696315,1726882249950,-619.45,0.00014557,2]
[338696316,1726882249960,-151.0,0.00014561,2]
[338696317,1726882249970,-151.125311,0.00014561,2]
[338696318,1726882249979,-151.0,0.00014561,2]
[338696319,1726882249991,-151.0,0.00014561,2]
[338696320,1726882250001,-151.0,0.00014561,2]
[338696321,1726882250010,-160.0,0.00014565,2]
[338696322,1726882250020,-306.82142223,0.00014565,2]
[338696323,1726882250029,-500.0,0.00014566,2]
[338696324,1726882250039,-500.0,0.00014566,2]
[338696325,1726882250048,-500.0,0.00014566,2]
[338696326,1726882250057,-501.04881337,0.00014566,2]
[338696327,1726882250067,-500.0,0.00014566,2]
[338696328,1726882250077,-726.77,0.00014566,2]
[338696329,1726882250087,-500.0,0.00014566,2]
[338696330,1726882250097,-500.0,0.00014566,2]
[338696331,1726882250107,-500.0,0.00014566,2]
[338696332,1726882250117,-500.0,0.00014566,2]
[338696333,1726882250126,-500.0,0.00014566,2]
[338696334,1726882250135,-500.0,0.00014566,2]
[338696335,1726882250145,-500.0,0.00014566,2]
[338696336,1726882250154,-500.0,0.00014566,2]
[338696337,1726882250162,-500.0,0.00014566,2]
[338696338,1726882250172,-500.0,0.00014566,2]
[338696339,1726882250181,-500.0,0.00014566,2]
[338696340,1726882250190,-500.0,0.00014566,2]
[338696341,1726882250199,-500.0,0.00014566,2]
[338696342,1726882250208,-500.0,0.00014566,2]
[338696343,1726882250218,-536.86256777,0.00014566,2]
[338696344,1726882250227,-500.0,0.00014566,2]
[338696345,1726882250240,-172.58,0.00014566,2]
[338696346,1726882250249,-500.0,0.00014566,2]
[338696347,1726882250258,-500.0,0.00014566,2]
[338696348,1726882250268,-500.0,0.00014566,2]
[338696349,1726882250281,-500.0,0.00014566,2]
[338696350,1726882250292,-162.02,0.00014566,2]
[338696351,1726882250302,-500.0,0.00014566,2]
[338696352,1726882250314,-500.0,0.00014566,2]
[338696353,1726882250323,-500.0,0.00014566,2]
[338696354,1726882250333,-500.0,0.00014566,2]
[338696355,1726882250343,-500.0,0.00014566,2]
[338696356,1726882250353,-500.0,0.00014566,2]
[338696357,1726882250362,-204.3399437,0.00014566,2]
[338696358,1726882250371,-500.0,0.00014566,2]
[338696359,1726882250380,-500.0,0.00014566,2]
[338696360,1726882250389,-335.73,0.00014566,2]
[338696361,1726882250399,-674.11,0.00014566,2]
[338696362,1726882250408,-500.0,0.00014566,2]
[338696363,1726882250418,-500.0,0.00014566,2]
[338696364,1726882250429,-500.0,0.00014566,2]
[338696365,1726882250439,-500.0,0.00014566,2]
[338696366,1726882250448,-500.0,0.00014566,2]
[338696367,1726882250457,-500.0,0.00014566,2]
[338696368,1726882250466,-500.0,0.00014566,2]
[338696369,1726882250475,-500.0,0.00014566,2]
[338696370,1726882250489,-500.0,0.00014566,2]
[338696371,1726882250498,-500.0,0.00014566,2]
[338696372,1726882250507,-500.0,0.00014566,2]
[338696373,1726882250516,-977.13,0.00014566,2]
[338696374,1726882250525,-500.0,0.00014566,2]
[338696375,1726882250534,-500.0,0.00014566,2]
[338696376,1726882250542,-500.0,0.00014566,2]
[338696377,1726882250551,-500.0,0.00014566,2]
[338696378,1726882250560,-500.0,0.00014566,2]
[338696379,1726882250569,-500.0,0.00014566,2]
[338696380,1726882250578,-500.0,0.00014566,2]
[338696381,1726882250587,-500.0,0.00014566,2]
[338696382,1726882250597,-276.72001185,0.00014566,2]
[338696383,1726882250607,-500.0,0.00014566,2]
[338696384,1726882250616,-500.0,0.00014566,2]
[338696385,1726882250625,-500.0,0.00014566,2]
[338696386,1726882250635,-500.0,0.00014566,2]
[338696387,1726882250644,-500.0,0.00014566,2]
[338696388,1726882250653,-500.0,0.00014566,2]
[338696389,1726882250662,-500.0,0.00014566,2]
[338696390,1726882250671,-500.0,0.00014566,2]
[338696391,1726882250680,-500.0,0.00014566,2]
[338696392,1726882250689,-500.0,0.00014566,2]
[338696393,1726882250698,-500.0,0.00014566,2]
[338696394,1726882250707,-500.0,0.00014566,2]
[338696395,1726882250716,-1959.87,0.00014566,2]
[338696396,1726882250726,-500.0,0.00014566,2]
[338696397,1726882250739,-500.0,0.00014566,2]
[338696398,1726882250749,-500.0,0.00014566,2]
[338696399,1726882250758,-595.38498499,0.00014566,2]
[338696400,1726882250767,-658.37,0.00014566,2]
[338696401,1726882250776,-500.0,0.00014566,2]
[338696402,1726882250785,-500.0,0.00014566,2]
[338696403,1726882250794,-500.0,0.00014566,2]
[338696404,1726882250803,-500.0,0.00014566,2]
[338696405,1726882250812,-500.0,0.00014566,2]
[338696406,1726882250821,-500.0,0.00014566,2]
[338696407,1726882250830,-500.0,0.00014566,2]
[338696408,1726882250839,-500.0,0.00014566,2]
[338696409,1726882250848,-500.0,0.00014566,2]
[338696410,1726882250857,-500.0,0.00014566,2]
[338696411,1726882250866,-500.0,0.00014566,2]
[338696412,1726882250875,-499.91767893,0.00014566,2]
[338696413,1726882250888,-500.0,0.00014566,2]
[338696414,1726882250897,-500.0,0.00014566,2]
[338696415,1726882250906,-214.17365,0.00014566,2]
[338696416,1726882250915,-500.0,0.00014566,2]
[338696417,1726882250927,-500.0,0.00014566,2]
[338696418,1726882250936,-500.0,0.00014566,2]
[338696419,1726882250945,-620.04,0.00014566,2]
[338696420,1726882250955,-500.0,0.00014566,2]
[338696421,1726882250964,-502.33,0.00014566,2]
[338696422,1726882250973,-500.0,0.00014566,2]
[338696423,1726882250982,-647.31,0.00014566,2]
[338696424,1726882250992,-500.0,0.00014566,2]
[338696425,1726882251001,-500.0,0.00014566,2]
[338696426,1726882251010,-619.45,0.00014566,2]
[338696427,1726882251020,-500.0,0.00014566,2]
[338696428,1726882251030,-548.73,0.00014566,2]
[338696429,1726882251039,-500.0,0.00014566,2]
[338696430,1726882251048,-506.92,0.00014566,2]
[338696431,1726882251057,-500.0,0.00014566,2]
[338696432,1726882251066,-500.0,0.00014566,2]
[338696433,1726882251076,-500.0,0.00014566,2]
[338696434,1726882251085,-500.0,0.00014566,2]
[338696435,1726882251095,-500.0,0.00014566,2]
[338696436,1726882251104,-304.70986439,0.00014566,2]
[338696437,1726882251113,-436.15221317,0.00014566,2]
[338696438,1726882251127,-500.0,0.00014566,2]
[338696439,1726882251137,-500.0,0.00014566,2]
[338696440,1726882251146,-500.0,0.00014566,2]
[338696441,1726882251156,-500.0,0.00014566,2]
[338696442,1726882251165,-151.0,0.00014566,2]
[338696443,1726882251174,-500.0,0.00014566,2]
[338696444,1726882251183,-362.56,0.00014566,2]
[338696445,1726882251192,-501.58793847,0.00014566,2]
[338696446,1726882251201,-500.0,0.00014566,2]
[338696447,1726882251211,-151.0,0.00014566,2]
[338696448,1726882251220,-151.0,0.00014566,2]
[338696449,1726882251230,-151.0,0.00014566,2]
[338696450,1726882251241,-151.0,0.00014566,2]
[338696451,1726882251250,-151.0,0.00014567,2]
[338696452,1726882251260,-151.0,0.00014567,2]
[338696453,1726882251273,-151.0,0.00014567,2]
[338696454,1726882251283,-261.172314,0.00014567,2]
[338696455,1726882251293,-619.45,0.00014567,2]
[338696456,1726882251303,-151.0,0.00014568,2]
[338696457,1726882251314,-151.0,0.00014568,2]
[338696458,1726882251324,-393.97773,0.00014568,2]
[338696459,1726882251334,-393.97773,0.00014568,2]
[338696460,1726882251343,-380.449599,0.00014568,2]
[338696461,1726882251354,-380.449599,0.00014568,2]
[338696462,1726882251363,-157.840811,0.00014568,2]
[338696463,1726882251373,-157.840811,0.00014568,2]
[338696464,1726882251382,-598.278904,0.00014568,2]
[338696465,1726882251392,-598.278904,0.00014568,2]
[338696466,1726882251401,-151.0,0.00014568,2]
[338696467,1726882251413,-239.886031,0.00014568,2]
[338696468,1726882251423,-239.886031,0.00014568,2]
[338696469,1726882251433,-151.0,0.00014568,2]
[338696470,1726882251442,-641.980631,0.00014568,2]
[338696471,1726882251451,-641.980631,0.00014568,2]
[338696472,1726882251460,-151.0,0.00014568,2]
[338696473,1726882251469,-252.193066,0.00014568,2]
[338696474,1726882251478,-252.193066,0.00014568,2]
[338696475,1726882251488,-619.45,0.00014569,2]
[338696476,1726882251497,-619.45,0.00014569,2]
[338696477,1726882251506,-619.45,0.0001457,2]
[338696478,1726882251515,-806.006674,0.00014571,2]
[338696479,1726882251524,-500.0,0.00014573,2]
[338696480,1726882251533,-543.17111625,0.00014573,2]
[338696481,1726882251542,-500.0,0.00014573,2]
[338696482,1726882251551,-500.0,0.00014573,2]
[338696483,1726882251561,-500.0,0.00014573,2]
[338696484,1726882251570,-151.0,0.00014573,2]
[338696485,1726882251578,-649.28286,0.00014573,2]
[338696486,1726882251587,-649.28286,0.00014573,2]
[338696487,1726882251597,-151.292781,0.00014573,2]
[338696488,1726882251606,-151.292781,0.00014573,2]
[338696489,1726882251615,-151.0,0.00014573,2]
[338696490,1726882251624,-151.0,0.00014573,2]
[338696491,1726882251634,-155.619532,0.00014573,2]
[338696492,1726882251643,-151.0,0.00014573,2]
[338696493,1726882251652,-151.0,0.00014573,2]
[338696494,1726882251660,-151.0,0.00014573,2]
[338696495,1726882251669,-328.580292,0.00014573,2]
[338696496,1726882251679,-328.580292,0.00014573,2]
[338696497,1726882251687,-619.45,0.0001458,2]
[338696498,1726882251697,-151.0,0.00014581,2]
[338696499,1726882251706,-150.0,0.00014592,2]
[338696500,1726882251716,-209.6738331,0.000146,2]
[338696501,1726882251727,-306.0,0.000146,2]
[338696502,1726882251738,-306.0,0.000146,2]
[338696503,1726882251748,-395.8559027,0.000146,2]
[338696504,1726882251758,-7133.309955,0.00014613,2]
[338696505,1726882251766,-150.0,0.00014619,2]
[338696506,1726882251776,-200.71850299,0.00014647,2]
[338696507,1726882251786,-309.8751819,0.000147,2]
[338696508,1726882251797,-150.112233,0.000147,2]
[338696509,1726882251809,-150.112236,0.000147,2]
[338696510,1726882251821,-500.0,0.00014753,7]
[338696511,1726882251831,-500.0,0.00014753,7]
[338696512,1726882251843,-500.0,0.00014753,7]
[338696513,1726882251855,-500.0,0.00014753,7]
[338696514,1726882251865,-511.94,0.00014753,7]
[338696515,1726882251876,-150.112233,0.000148,2]
[338696516,1726882251891,-500.0,0.00014803,2]
[338696517,1726882251900,-500.0,0.00014803,2]
[338696518,1726882251911,-294.14791915,0.00014803,2]
[338696519,1726882251921,-21386.49,0.00014803,2]
[338696520,1726882251933,-500.0,0.00014803,2]
[338696521,1726882251943,-3442.17,0.00014803,2]
[338696522,1726882251954,-500.0,0.00014803,2]
[338696523,1726882251965,-151.0,0.00014803,2]
[338696524,1726882251976,-350.87955478,0.00014803,2]
[338696525,1726882251986,-500.0,0.00014803,2]
[338696526,1726882251995,-500.0,0.00014803,2]
[338696527,1726882252005,-208.675393,0.00014803,2]
[338696528,1726882252014,-1346.24,0.00014803,2]
[338696529,1726882252022,-208.675393,0.00014803,2]
[338696530,1726882252032,-286.94,0.0001481,2]
[338696531,1726882252041,-500.0,0.0001481,2]
[338696532,1726882252050,-185.49,0.0001481,2]
[338696533,1726882252059,-500.0,0.0001481,2]
[338696534,1726882252068,-500.0,0.0001481,2]
[338696535,1726882252078,-223.13053213,0.0001481,2]
[338696536,1726882252087,-500.0,0.0001481,2]
[338696537,1726882252096,-500.0,0.0001481,2]
[338696538,1726882252105,-500.0,0.0001481,2]
[338696539,1726882252114,-500.0,0.0001481,2]
[338696540,1726882252124,-487.65,0.0001481,2]
[338696541,1726882252133,-355.98,0.0001481,2]
[338696542,1726882252142,-500.0,0.0001481,2]
[338696543,1726882252152,-1087.66,0.0001481,2]
[338696544,1726882252161,-899.89,0.0001481,2]
[338696545,1726882252170,-500.0,0.0001481,2]
[338696546,1726882252179,-329.89,0.0001481,2]
[338696547,1726882252189,-692.92,0.0001481,2]
[338696548,1726882252198,-500.0,0.0001481,2]
[338696549,1726882252208,-500.0,0.0001481,2]
[338696550,1726882252217,-150.83,0.0001481,2]
[338696551,1726882252227,-500.0,0.0001481,2]
[338696552,1726882252236,-676.4,0.0001481,2]
[338696553,1726882252245,-500.0,0.0001481,2]
[338696554,1726882252254,-1076.45659559,0.0001481,2]
[338696555,1726882252263,-500.0,0.0001481,2]
[338696556,1726882252273,-285.08,0.0001481,2]
[338696557,1726882252282,-500.0,0.0001481,2]
[338696558,1726882252291,-500.0,0.0001481,2]
[338696559,1726882252301,-500.0,0.0001481,2]
[338696560,1726882252310,-500.0,0.0001481,2]
[338696561,1726882252321,-500.0,0.0001481,2]
[338696562,1726882252330,-234.07,0.0001481,2]
[338696563,1726882252341,-500.0,0.0001481,2]
[338696564,1726882252350,-881.28,0.0001481,2]
[338696565,1726882252359,-333.60590168,0.0001481,2]
[338696566,1726882252368,-500.0,0.00014814,2]
[338696567,1726882252378,-634.46,0.00014814,2]
[338696568,1726882252387,-500.0,0.00014814,2]
[338696569,1726882252397,-500.0,0.00014814,2]
[338696570,1726882252406,-500.0,0.00014814,2]
[338696571,1726882252415,-500.0,0.00014814,2]
[338696572,1726882252424,-525.34,0.00014814,2]
[338696573,1726882252434,-500.0,0.00014814,2]
[338696574,1726882252565,-459.52509519,0.00014814,2]
[338696575,1726882252574,-500.0,0.00014814,2]
[338696576,1726882252583,-500.0,0.00014814,2]
[338696577,1726882252593,-500.0,0.00014814,2]
[338696578,1726882252602,-500.0,0.00014814,2]
[338696579,1726882252611,-500.0,0.00014814,2]
[338696580,1726882252620,-500.0,0.00014814,2]
[338696581,1726882252629,-500.0,0.00014814,2]
[338696582,1726882252638,-500.0,0.00014814,2]
[338696583,1726882252648,-500.0,0.00014814,2]
[338696584,1726882252657,-500.0,0.00014814,2]
[338696585,1726882252666,-500.0,0.00014814,2]
[338696586,1726882252675,-500.0,0.00014814,2]
[338696587,1726882252684,-151.0,0.00014814,2]
[338696588,1726882252694,-594.512729,0.00014814,2]
[338696589,1726882252706,-594.512729,0.00014814,2]
[338696590,1726882252717,-500.0,0.00014814,2]
[338696591,1726882252729,-500.0,0.00014814,2]
[338696592,1726882252739,-151.0,0.00014814,2]
[338696593,1726882252751,-500.0,0.00014814,2]
[338696594,1726882252761,-500.0,0.00014814,2]
[338696595,1726882252770,-151.0,0.00014814,2]
[338696596,1726882252780,-500.0,0.00014814,2]
[338696597,1726882252789,-500.0,0.00014814,2]
[338696598,1726882252798,-500.0,0.00014814,2]
[338696599,1726882252808,-500.0,0.00014814,2]
[338696600,1726882252817,-500.0,0.00014814,2]
[338696601,1726882252827,-500.0,0.00014814,2]
[338696602,1726882252836,-500.0,0.00014814,2]
[338696603,1726882252847,-500.0,0.00014814,2]
[338696604,1726882252857,-239.2,0.00014814,2]
[338696605,1726882252869,-500.0,0.00014814,2]
[338696606,1726882252882,-500.0,0.00014814,2]
[338696607,1726882252892,-500.0,0.00014814,2]
[338696608,1726882252902,-500.0,0.00014814,2]
[338696609,1726882252911,-500.0,0.00014814,2]
[338696610,1726882252921,-500.0,0.00014814,2]
[338696611,1726882252931,-500.0,0.00014814,2]
[338696612,1726882252940,-500.0,0.00014814,2]
[338696613,1726882252951,-500.0,0.00014814,2]
[338696614,1726882252962,-349.008388,0.00014814,2]
[338696615,1726882252971,-349.008388,0.00014814,2]
[338696616,1726882252980,-500.0,0.00014814,2]
[338696617,1726882252990,-500.0,0.00014814,2]
[338696618,1726882253001,-1020.53,0.00014814,2]
[338696619,1726882253010,-648.67,0.00014814,2]
[338696620,1726882253019,-500.0,0.00014814,2]
[338696621,1726882253028,-500.0,0.00014814,2]
[338696622,1726882253037,-319.771918,0.00014814,2]
[338696623,1726882253047,-319.771918,0.00014814,2]
[338696624,1726882253057,-171.13255659,0.00014814,2]
[338696625,1726882253066,-500.0,0.00014814,2]
[338696626,1726882253075,-500.0,0.00014814,2]
[338696627,1726882253084,-585.51,0.00014814,2]
[338696628,1726882253094,-500.0,0.00014814,2]
[338696629,1726882253103,-500.0,0.00014814,2]
[338696630,1726882253112,-500.0,0.00014814,2]
[338696631,1726882253122,-500.0,0.00014814,2]
[338696632,1726882253131,-500.0,0.00014814,2]
[338696633,1726882253141,-500.0,0.00014814,2]
[338696634,1726882253151,-500.0,0.00014814,2]
[338696635,1726882253161,-500.0,0.00014814,2]
[338696636,1726882253171,-500.0,0.00014814,2]
[338696637,1726882253180,-500.0,0.00014814,2]
[338696638,1726882253189,-500.0,0.00014814,2]
[338696639,1726882253198,-500.0,0.00014814,2]
[338696640,1726882253208,-631.49,0.00014814,2]
[338696641,1726882253218,-690.32,0.00014814,2]
[338696642,1726882253227,-151.0,0.00014825,2]
[338696643,1726882253240,-151.0,0.00014825,2]
[338696644,1726882253250,-387.28,0.00014825,2]
[338696645,1726882253259,-500.0,0.00014825,2]
[338696646,1726882253268,-500.0,0.00014825,2]
[338696647,1726882253278,-391.25814725,0.00014825,2]
[338696648,1726882253287,-559.76,0.00014825,2]
[338696649,1726882253296,-500.0,0.00014825,2]
[338696650,1726882253305,-449.51298724,0.00014825,2]
[338696651,1726882253314,-500.0,0.00014825,2]
[338696652,1726882253323,-500.0,0.00014825,2]
[338696653,1726882253333,-500.0,0.00014825,2]
[338696654,1726882253342,-596.31,0.00014825,2]
[338696655,1726882253352,-299.67309562,0.00014825,2]
[338696656,1726882253698,-502.29068794,0.00014255,2]
[338696657,1726882253709,-200.32690438,0.00014825,2]
[338696658,1726882253720,-500.0,0.00014825,2]
[338696659,1726882253730,-500.0,0.00014825,2]
[338696660,1726882253743,-361.84,0.00014825,2]
[338696661,1726882253752,-500.0,0.00014825,2]
[338696662,1726882253761,-500.0,0.00014825,2]
[338696663,1726882253770,-500.0,0.00014825,2]
[338696664,1726882253779,-606.62,0.00014825,2]
[338696665,1726882253788,-365.08,0.00014825,2]
[338696666,1726882253799,-500.0,0.00014825,2]